fUSD/lending_fUSD_20260703
["ID","MTS","AMOUNT","RATE_DAILY","PERIOD"]
[426942486,1783035056000,-151.0,0.00034997,14]
[426942501,1783035056000,-1500.0,0.00035,2]
[426942521,1783035056000,-4106.01184769,0.00035,120]
[426942483,1783035056000,-2380.0,0.0003499,120]
[426942491,1783035056000,-1000.0,0.00034999,2]
[426942485,1783035056000,-151.0,0.00034997,14]
[426942484,1783035056000,-618.0,0.0003499,120]
[426942489,1783035056000,-1000.0,0.00034999,2]
[426942488,1783035056000,-31490.90138361,0.00034999,14]
[426942487,1783035056000,-2716.36663526,0.00034999,2]
[426942490,1783035056000,-1000.0,0.00034999,2]
[426942493,1783035056000,-500.0,0.00034999,7]
[426942492,1783035056000,-1000.0,0.00034999,2]
[426942494,1783035056000,-500.0,0.00034999,7]
[426942495,1783035056000,-500.0,0.00034999,7]
[426942497,1783035056000,-1500.0,0.00035,2]
[426942499,1783035056000,-9642.5709,0.00035,2]
[426942502,1783035056000,-1500.0,0.00035,2]
[426942500,1783035056000,-536.0,0.00035,30]
[426942496,1783035056000,-500.0,0.00034999,7]
[426942518,1783035056000,-6298.95861685,0.00035,10]
[426942531,1783035056000,-8416.86317064,0.00035,7]
[426942523,1783035056000,-498.03499423,0.00035,7]
[426942548,1783035056000,-266.177849,0.00035,7]
[426942544,1783035056000,-151.0,0.00035,7]
[426942547,1783035056000,-266.177845,0.00035,7]
[426942551,1783035056000,-333.61536,0.00035,7]
[426942552,1783035056000,-333.61536,0.00035,7]
[426942550,1783035056000,-333.61536,0.00035,7]
[426942549,1783035056000,-151.0,0.00035,7]
[426942553,1783035056000,-333.61536,0.00035,7]
[426942554,1783035056000,-151.0,0.00035,7]
[426942556,1783035056000,-151.0,0.00035,7]
[426942555,1783035056000,-151.0,0.00035,7]
[426942557,1783035056000,-22500.0,0.00035,2]
[426942558,1783035056000,-130.67272219,0.00035,7]
[426942559,1783035056000,-1237.95150844,0.00035,7]
[426942525,1783035056000,-288.29569325,0.00035,120]
[426942561,1783035056000,-242.33,0.00035008,30]
[426942562,1783035056000,-9968.10685895,0.00035021,2]
[426942546,1783035056000,-266.177845,0.00035,7]
[426942545,1783035056000,-266.177845,0.00035,7]
[426942560,1783035056000,-372.15616407,0.00035003,2]
[426942541,1783035056000,-151.0,0.00035,7]
[426942543,1783035056000,-14187.63,0.00035,2]
[426942530,1783035056000,-8416.86317064,0.00035,7]
[426942528,1783035056000,-8416.86317064,0.00035,7]
[426942524,1783035056000,-201139.4909951,0.00035,10]
[426942526,1783035056000,-10121.19455735,0.00035,30]
[426942527,1783035056000,-8416.86317064,0.00035,7]
[426942529,1783035056000,-247.65,0.00035,2]
[426942532,1783035056000,-1814.27,0.00035,2]
[426942522,1783035056000,-21858.61884459,0.00035,120]
[426942535,1783035056000,-22500.0,0.00035,2]
[426942533,1783035056000,-22500.0,0.00035,2]
[426942536,1783035056000,-22499.99,0.00035,2]
[426942534,1783035056000,-22499.99,0.00035,2]
[426942542,1783035056000,-151.0,0.00035,7]
[426942537,1783035056000,-22499.99,0.00035,2]
[426942539,1783035056000,-22499.98,0.00035,2]
[426942540,1783035056000,-11790.16,0.00035,2]
[426942538,1783035056000,-22500.0,0.00035,2]
[426942563,1783035057000,-222.0,0.00025,2]
[426942564,1783035057000,-173.82008064,0.00027695,2]
[426942655,1783036231000,-78.13598078,0.00017,2]
[426942663,1783036231000,-150.0,0.00017,2]
[426942669,1783036231000,-600.0,0.00018699,2]
[426942658,1783036231000,-150.0,0.00017,2]
[426942654,1783036231000,-73.86401922,0.00017,2]
[426942674,1783036231000,-500.0,0.00018699,2]
[426942671,1783036231000,-600.0,0.00018699,2]
[426942673,1783036231000,-153.43854319,0.00018699,2]
[426942662,1783036231000,-151.0,0.00017,2]
[426942665,1783036231000,-151.0,0.00018,2]
[426942666,1783036231000,-151.0,0.00018,2]
[426942639,1783036231000,-255.0,0.00016999,2]
[426942661,1783036231000,-153.0,0.00017,2]
[426942664,1783036231000,-533.0,0.00017,2]
[426942657,1783036231000,-151.0,0.00017,2]
[426942643,1783036231000,-600.0,0.00017,2]
[426942653,1783036231000,-152.0,0.00017,2]
[426942652,1783036231000,-150.0,0.00017,2]
[426942656,1783036231000,-151.0,0.00017,2]
[426942648,1783036231000,-151.0,0.00017,2]
[426942647,1783036231000,-152.0,0.00017,2]
[426942649,1783036231000,-151.0,0.00017,2]
[426942651,1783036231000,-150.0,0.00017,2]
[426942644,1783036231000,-150.0,0.00017,2]
[426942646,1783036231000,-151.0,0.00017,2]
[426942645,1783036231000,-152.0,0.00017,2]
[426942650,1783036231000,-153.0,0.00017,2]
[426942642,1783036231000,-456.16334864,0.00016999,2]
[426942641,1783036231000,-368.43177265,0.00016999,2]
[426942640,1783036231000,-131.56822735,0.00016999,2]
[426942659,1783036231000,-150.0,0.00017,2]
[426942667,1783036231000,-193.0,0.00018699,2]
[426942660,1783036231000,-151.0,0.00017,2]
[426942668,1783036231000,-196.75230026,0.00018699,2]
[426942711,1783036231000,-151.0,0.00022061,2]
[426942713,1783036231000,-153.0,0.00022088,2]
[426942715,1783036231000,-500.0,0.00022088,2]
[426942724,1783036231000,-1000.0,0.0002266,2]
[426942723,1783036231000,-150.0,0.00022625,2]
[426942720,1783036231000,-535.92,0.00022343,2]
[426942709,1783036231000,-2441.89282361,0.00022,4]
[426942717,1783036231000,-151.0,0.00022167,2]
[426942722,1783036231000,-152.0,0.00022485,2]
[426942726,1783036231000,-535.92,0.00022902,2]
[426942729,1783036231000,-535.92,0.0002346,2]
[426942727,1783036231000,-150.0,0.00023014,2]
[426942728,1783036231000,-150.48133098,0.00023164,120]
[426942672,1783036231000,-177.960468,0.00018699,2]
[426942725,1783036231000,-187.13,0.00022689,2]
[426942696,1783036231000,-261.04942051,0.000217,2]
[426942675,1783036231000,-482.49,0.0001995,2]
[426942692,1783036231000,-261.04942051,0.000212,2]
[426942694,1783036231000,-261.04942051,0.000215,2]
[426942676,1783036231000,-295.49294927,0.00019979,2]
[426942677,1783036231000,-299.999999,0.0001998,7]
[426942686,1783036231000,-150.0,0.00020851,2]
[426942683,1783036231000,-151.0,0.00020851,2]
[426942682,1783036231000,-150.0,0.00020851,2]
[426942679,1783036231000,-261.04942051,0.000208,2]
[426942670,1783036231000,-600.0,0.00018699,2]
[426942699,1783036231000,-5368.46,0.00021757,2]
[426942707,1783036231000,-606.69725369,0.00021999,2]
[426942705,1783036231000,-150.0,0.00021918,2]
[426942688,1783036231000,-216.69616408,0.00020855,2]
[426942703,1783036231000,-8026.86,0.00021757,2]
[426942690,1783036231000,-261.04942051,0.00021,2]
[426942701,1783036231000,-5737.86,0.00021757,2]
[426942785,1783036232000,-500.0,0.00025799,2]
[426942752,1783036232000,-291.64997414,0.00025684,2]
[426942755,1783036232000,-500.0,0.00025684,2]
[426942762,1783036232000,-341.77319689,0.00025699,2]
[426942761,1783036232000,-33361.7046,0.00025685,2]
[426942765,1783036232000,-176.5724525,0.00025713,2]
[426942764,1783036232000,-151.44382899,0.000257,2]
[426942770,1783036232000,-500.0,0.00025799,2]
[426942769,1783036232000,-202.26120364,0.00025799,2]
[426942771,1783036232000,-294.10266753,0.00025799,2]
[426942772,1783036232000,-186.07321259,0.00025799,2]
[426942768,1783036232000,-500.0,0.00025799,2]
[426942774,1783036232000,-251.22101456,0.00025799,2]
[426942766,1783036232000,-490.18281924,0.00025713,2]
[426942767,1783036232000,-151.0,0.00025797,7]
[426942776,1783036232000,-500.0,0.00025799,2]
[426942786,1783036232000,-500.0,0.00025799,2]
[426942777,1783036232000,-350.31225728,0.00025799,2]
[426942778,1783036232000,-500.0,0.00025799,2]
[426942775,1783036232000,-500.0,0.00025799,2]
[426942781,1783036232000,-500.0,0.00025799,2]
[426942783,1783036232000,-500.0,0.00025799,2]
[426942779,1783036232000,-500.0,0.00025799,2]
[426942782,1783036232000,-500.0,0.00025799,2]
[426942753,1783036232000,-508.44674096,0.00025684,2]
[426942773,1783036232000,-500.0,0.00025799,2]
[426942756,1783036232000,-500.0,0.00025684,2]
[426942754,1783036232000,-500.0,0.00025684,2]
[426942731,1783036232000,-160.0,0.00024,2]
[426942730,1783036232000,-250.0,0.00023799,2]
[426942732,1783036232000,-155.0,0.00024,2]
[426942739,1783036232000,-154.98925467,0.00024397,2]
[426942735,1783036232000,-196.0,0.00024,2]
[426942737,1783036232000,-150.0,0.00024164,2]
[426942733,1783036232000,-220.0,0.00024,2]
[426942734,1783036232000,-182.0,0.00024,2]
[426942736,1783036232000,-535.92,0.00024019,2]
[426942740,1783036232000,-535.92,0.00024577,2]
[426942738,1783036232000,-862.67196367,0.0002421,2]
[426942742,1783036232000,-220.0,0.00025,2]
[426942741,1783036232000,-155.0,0.00025,2]
[426942744,1783036232000,-196.0,0.00025,2]
[426942746,1783036232000,-170.0,0.0002552,2]
[426942747,1783036232000,-500.0,0.00025682,2]
[426942745,1783036232000,-150.0,0.00025373,2]
[426942743,1783036232000,-182.0,0.00025,2]
[426942749,1783036232000,-500.0,0.00025682,2]
[426942748,1783036232000,-500.0,0.00025682,2]
[426942750,1783036232000,-500.0,0.00025682,2]
[426942751,1783036232000,-500.0,0.00025682,2]
[426942759,1783036232000,-500.0,0.00025684,2]
[426942757,1783036232000,-500.0,0.00025684,2]
[426942758,1783036232000,-504.82018076,0.00025684,2]
[426942780,1783036232000,-500.0,0.00025799,2]
[426942784,1783036232000,-500.0,0.00025799,2]
[426942763,1783036232000,-2348.55617101,0.000257,2]
[426942793,1783036232000,-500.0,0.00025799,2]
[426942811,1783036232000,-500.0,0.00025799,2]
[426942817,1783036232000,-500.0,0.00025799,2]
[426942815,1783036232000,-500.0,0.00025799,2]
[426942822,1783036232000,-500.0,0.00025799,2]
[426942825,1783036232000,-500.0,0.00025799,2]
[426942821,1783036232000,-500.0,0.00025799,2]
[426942823,1783036232000,-500.0,0.00025799,2]
[426942832,1783036232000,-500.0,0.00025799,2]
[426942824,1783036232000,-500.0,0.00025799,2]
[426942828,1783036232000,-500.0,0.00025799,2]
[426942830,1783036232000,-500.0,0.00025799,2]
[426942826,1783036232000,-500.0,0.00025799,2]
[426942812,1783036232000,-500.0,0.00025799,2]
[426942827,1783036232000,-500.0,0.00025799,2]
[426942829,1783036232000,-500.0,0.00025799,2]
[426942833,1783036232000,-500.0,0.00025799,2]
[426942836,1783036232000,-500.0,0.00025799,2]
[426942834,1783036232000,-192.65833493,0.00025799,2]
[426942838,1783036232000,-500.0,0.00025799,2]
[426942835,1783036232000,-500.0,0.00025799,2]
[426942837,1783036232000,-500.0,0.00025799,2]
[426942839,1783036232000,-500.0,0.00025799,2]
[426942841,1783036232000,-500.0,0.00025799,2]
[426942842,1783036232000,-500.0,0.00025799,2]
[426942840,1783036232000,-500.0,0.00025799,2]
[426942789,1783036232000,-500.0,0.00025799,2]
[426942831,1783036232000,-221.6039585,0.00025799,2]
[426942814,1783036232000,-500.0,0.00025799,2]
[426942760,1783036232000,-500.0,0.00025684,2]
[426942818,1783036232000,-500.0,0.00025799,2]
[426942819,1783036232000,-500.0,0.00025799,2]
[426942790,1783036232000,-330.46187142,0.00025799,2]
[426942797,1783036232000,-500.0,0.00025799,2]
[426942796,1783036232000,-500.0,0.00025799,2]
[426942792,1783036232000,-500.0,0.00025799,2]
[426942787,1783036232000,-500.0,0.00025799,2]
[426942794,1783036232000,-500.0,0.00025799,2]
[426942791,1783036232000,-500.0,0.00025799,2]
[426942788,1783036232000,-500.0,0.00025799,2]
[426942798,1783036232000,-500.0,0.00025799,2]
[426942799,1783036232000,-500.0,0.00025799,2]
[426942809,1783036232000,-500.0,0.00025799,2]
[426942800,1783036232000,-500.0,0.00025799,2]
[426942795,1783036232000,-500.0,0.00025799,2]
[426942804,1783036232000,-500.0,0.00025799,2]
[426942816,1783036232000,-500.0,0.00025799,2]
[426942801,1783036232000,-500.0,0.00025799,2]
[426942810,1783036232000,-500.0,0.00025799,2]
[426942813,1783036232000,-500.0,0.00025799,2]
[426942806,1783036232000,-500.0,0.00025799,2]
[426942820,1783036232000,-500.0,0.00025799,2]
[426942803,1783036232000,-500.0,0.00025799,2]
[426942802,1783036232000,-500.0,0.00025799,2]
[426942807,1783036232000,-500.0,0.00025799,2]
[426942808,1783036232000,-500.0,0.00025799,2]
[426942805,1783036232000,-500.0,0.00025799,2]
[426942851,1783036233000,-261.93971236,0.00025799,2]
[426942855,1783036233000,-500.0,0.00025799,2]
[426942845,1783036233000,-417.80028764,0.00025799,2]
[426942847,1783036233000,-500.0,0.00025799,2]
[426942844,1783036233000,-192.09818676,0.00025799,2]
[426942843,1783036233000,-307.90181324,0.00025799,2]
[426942849,1783036233000,-500.0,0.00025799,2]
[426942853,1783036233000,-500.0,0.00025799,2]
[426942852,1783036233000,-500.0,0.00025799,2]
[426942850,1783036233000,-238.06028764,0.00025799,2]
[426942846,1783036233000,-82.19971236,0.00025799,2]
[426942848,1783036233000,-500.0,0.00025799,2]
[426942854,1783036233000,-500.0,0.00025799,2]
[426942864,1783036233000,-224.70006552,0.00025799,2]
[426942862,1783036233000,-500.0,0.00025799,2]
[426942857,1783036233000,-500.0,0.00025799,2]
[426942860,1783036233000,-500.0,0.00025799,2]
[426942861,1783036233000,-500.0,0.00025799,2]
[426942859,1783036233000,-500.0,0.00025799,2]
[426942856,1783036233000,-500.0,0.00025799,2]
[426942863,1783036233000,-500.0,0.00025799,2]
[426942858,1783036233000,-500.0,0.00025799,2]
[426942887,1783036237000,-859.63043841,0.000258,2]
[426942885,1783036237000,-66.9408352,0.000217,2]
[426942886,1783036237000,-3821.57254362,0.000258,2]
[426942884,1783036237000,-301.72,0.000217,2]
[426942880,1783036237000,-368.6608352,0.000212,2]
[426942882,1783036237000,-10720.36186194,0.000258,2]
[426942881,1783036237000,-368.6608352,0.000215,2]
[426942879,1783036237000,-362.86099912,0.00021,2]
[426942878,1783036237000,-5.79983608,0.00021,2]
[426942877,1783036237000,-368.6608352,0.000208,2]
[426942883,1783036237000,-1318.75819923,0.000258,2]
[426942891,1783036239000,-2145.50283698,0.000258,2]
[426942890,1783036239000,-327.84001672,0.000258,2]
[426942893,1783036239000,-7989.94267425,0.000258,2]
[426942892,1783036239000,-2073.02082785,0.000258,2]
[426942925,1783036242000,-955.44262745,0.000258,2]
[426942926,1783036242000,-424.35803045,0.000258,2]
[426942929,1783036242000,-510.0,0.000258,2]
[426942928,1783036242000,-141113.99493146,0.000258,2]
[426942927,1783036242000,-2382.5,0.000258,2]
[426942930,1783036243000,-1600.60905335,0.000258,2]
[426942933,1783036245000,-2271.95707828,0.000258,2]
[426942932,1783036245000,-672.88866102,0.000258,2]
[426942936,1783036324000,-177.0,0.00015,2]
[426942937,1783036433000,1000.0,8.82e-06,60]
[426942938,1783036442000,1000.0,8.77e-06,30]
[426942939,1783036455000,1000.0,8.79e-06,30]
[426942940,1783036473000,1000.0,8.77e-06,60]
[426942941,1783036494000,754.27,8.49e-06,2]
[426942942,1783036806000,491.02,0.00015973,30]
[426942943,1783036807000,491.02,0.00019973,60]
[426943020,1783037431000,-331.98583701,0.00015008,2]
[426943024,1783037431000,-338.96494418,0.000165,2]
[426943025,1783037431000,-184.8634199,0.000165,2]
[426943019,1783037431000,-223.19977161,0.00015,2]
[426943021,1783037431000,-228.39941074,0.00015016,2]
[426943023,1783037431000,-223.17450603,0.000153,7]
[426943022,1783037431000,-142.73508971,0.00015016,2]
[426943028,1783037431000,-84.8634199,0.00017,2]
[426943029,1783037431000,-499.1365801,0.00017,2]
[426943033,1783037431000,-31.0846529,0.0002,7]
[426943027,1783037431000,-415.1365801,0.000165,2]
[426943030,1783037431000,-509.0,0.00017,2]
[426943031,1783037431000,-151.0,0.00018,2]
[426943087,1783037432000,-589.55634708,0.00022461,2]
[426943086,1783037432000,-259.32,0.00022437,2]
[426943088,1783037432000,-1031.67781115,0.00022552,2]
[426943089,1783037432000,-13456.73996325,0.00022552,2]
[426943090,1783037432000,-75852.09836261,0.00022552,2]
[426943100,1783037432000,-500.0,0.00022559,2]
[426943092,1783037432000,-625.10325191,0.00022559,2]
[426943091,1783037432000,-500.0,0.00022559,2]
[426943094,1783037432000,-500.0,0.00022559,2]
[426943097,1783037432000,-500.0,0.00022559,2]
[426943093,1783037432000,-500.0,0.00022559,2]
[426943096,1783037432000,-500.0,0.00022559,2]
[426943079,1783037432000,-5000.0,0.00021918,2]
[426943099,1783037432000,-500.0,0.00022559,2]
[426943102,1783037432000,-343.96714707,0.00022559,2]
[426943112,1783037432000,-500.0,0.00022559,2]
[426943101,1783037432000,-500.0,0.00022559,2]
[426943105,1783037432000,-500.0,0.00022559,2]
[426943103,1783037432000,-500.0,0.00022559,2]
[426943104,1783037432000,-500.0,0.00022559,2]
[426943110,1783037432000,-500.0,0.00022559,2]
[426943109,1783037432000,-500.0,0.00022559,2]
[426943108,1783037432000,-500.0,0.00022559,2]
[426943107,1783037432000,-500.0,0.00022559,2]
[426943098,1783037432000,-500.0,0.00022559,2]
[426943095,1783037432000,-500.0,0.00022559,2]
[426943084,1783037432000,-500.0,0.00022274,2]
[426943082,1783037432000,-1600.0,0.000221,2]
[426943053,1783037432000,-493.6088856,0.00020016,2]
[426943051,1783037432000,-1968.9153471,0.0002,7]
[426943058,1783037432000,-150.0,0.00020762,2]
[426943055,1783037432000,-244.52419631,0.00020403,2]
[426943064,1783037432000,-150.0,0.000208,2]
[426943060,1783037432000,-160.0,0.00020784,2]
[426943062,1783037432000,-1015.53660204,0.000208,2]
[426943066,1783037432000,-152.0,0.000208,2]
[426943076,1783037432000,-1015.53660204,0.000215,2]
[426943069,1783037432000,-17.2744219,0.00020805,2]
[426943065,1783037432000,-151.0,0.000208,2]
[426943106,1783037432000,-500.0,0.00022559,2]
[426943068,1783037432000,-199.42174218,0.00020805,2]
[426943070,1783037432000,-166.47,0.00020832,2]
[426943071,1783037432000,-745.54,0.00020844,2]
[426943075,1783037432000,-1015.53660204,0.000212,2]
[426943072,1783037432000,-386.57,0.00020872,2]
[426943074,1783037432000,-195.88195272,0.00021028,10]
[426943073,1783037432000,-1015.53660204,0.00021,2]
[426943077,1783037432000,-1015.53660204,0.000217,2]
[426943080,1783037432000,-150.0,0.00021918,2]
[426943081,1783037432000,-1015.53660204,0.000221,2]
[426943078,1783037432000,-1015.53660204,0.000219,2]
[426943083,1783037432000,-800.0,0.00022195,2]
[426943067,1783037432000,-153.0,0.000208,2]
[426943111,1783037432000,-500.0,0.00022559,2]
[426943085,1783037432000,-1015.53660204,0.000223,2]
[426943113,1783037432000,-500.0,0.00022559,2]
[426943144,1783037432000,-1495.79,0.00023368,2]
[426943142,1783037432000,-221.36,0.00023368,2]
[426943147,1783037432000,-800.0,0.0002386,2]
[426943149,1783037432000,-155.0,0.00024,2]
[426943159,1783037432000,-165.0,0.00025,2]
[426943150,1783037432000,-198.0,0.00024,2]
[426943151,1783037432000,-163.0,0.00024,2]
[426943148,1783037432000,-200.0,0.00024,2]
[426943152,1783037432000,-176.0,0.00024,2]
[426943155,1783037432000,-225.5,0.00024235,2]
[426943157,1783037432000,-589.55634703,0.00024974,2]
[426943158,1783037432000,-200.0,0.00025,2]
[426943154,1783037432000,-150.0,0.00024164,2]
[426943156,1783037432000,-800.0,0.00024414,2]
[426943153,1783037432000,-589.55634703,0.00024136,2]
[426943163,1783037432000,-2000.0,0.00025,2]
[426943160,1783037432000,-198.0,0.00025,2]
[426943165,1783037432000,-150.0,0.00025373,2]
[426943161,1783037432000,-163.0,0.00025,2]
[426943166,1783037432000,-579.1527,0.00025646,2]
[426943162,1783037432000,-176.0,0.00025,2]
[426943168,1783037432000,-2975.42345894,0.00025647,2]
[426943164,1783037432000,-616.08327075,0.00025016,2]
[426943167,1783037432000,-4164.9898,0.00025646,2]
[426943114,1783037432000,-500.0,0.00022559,2]
[426943145,1783037432000,-745.54,0.00023449,2]
[426943143,1783037432000,-325.76,0.00023368,2]
[426943139,1783037432000,-999.99,0.00023368,2]
[426943146,1783037432000,-166.66,0.00023616,2]
[426943115,1783037432000,-500.0,0.00022559,2]
[426943119,1783037432000,-500.0,0.00022559,2]
[426943120,1783037432000,-500.0,0.00022559,2]
[426943122,1783037432000,-500.0,0.00022559,2]
[426943116,1783037432000,-500.0,0.00022559,2]
[426943121,1783037432000,-500.0,0.00022559,2]
[426943118,1783037432000,-500.0,0.00022559,2]
[426943123,1783037432000,-500.0,0.00022559,2]
[426943117,1783037432000,-500.0,0.00022559,2]
[426943138,1783037432000,-9999.99,0.00023368,2]
[426943125,1783037432000,-500.0,0.00022559,2]
[426943127,1783037432000,-500.0,0.00022561,2]
[426943126,1783037432000,-299.99999999,0.00022559,2]
[426943124,1783037432000,-500.0,0.00022559,2]
[426943128,1783037432000,-1015.53660204,0.000226,2]
[426943137,1783037432000,-150.99,0.00023368,2]
[426943130,1783037432000,-1015.53660204,0.000228,2]
[426943141,1783037432000,-2613.95,0.00023368,2]
[426943134,1783037432000,-150.0,0.00023014,2]
[426943135,1783037432000,-589.55634703,0.00023299,2]
[426943140,1783037432000,-6588.79,0.00023368,2]
[426943136,1783037432000,-800.0,0.00023305,2]
[426943131,1783037432000,-158.9,0.00022862,2]
[426943133,1783037432000,-912.0,0.00022984,2]
[426943129,1783037432000,-800.0,0.0002275,2]
[426943132,1783037432000,-1136.45,0.0002292,2]
[426943174,1783037433000,-196.31320864,0.00025746,2]
[426943171,1783037433000,-168.76213008,0.000257,2]
[426943169,1783037433000,-2500.0,0.00025647,2]
[426943170,1783037433000,-151.00057088,0.00025671,20]
[426943173,1783037433000,-2729.0166442,0.00025739,2]
[426943172,1783037433000,-10744.2538654,0.00025739,2]
[426943175,1783037433000,-547.23278651,0.00025746,2]
[426943176,1783037433000,-205.87186727,0.00025746,2]
[426943184,1783037433000,-1938.03089566,0.00025747,2]
[426943178,1783037433000,-508.01543162,0.00025746,2]
[426943179,1783037433000,-500.0,0.00025746,2]
[426943181,1783037433000,-112996.50521766,0.00025747,2]
[426943180,1783037433000,-480.31305187,0.00025746,2]
[426943183,1783037433000,-2278.0,0.00025747,2]
[426943182,1783037433000,-13412.66719565,0.00025747,2]
[426943185,1783037433000,-15005.08970434,0.00025747,2]
[426943186,1783037433000,-575.40600732,0.00025747,2]
[426943177,1783037433000,-500.0,0.00025746,2]
[426943194,1783037438000,-11819.52672485,0.00025747,2]
[426943202,1783037439000,-2123.94806258,0.00025747,2]
[426943214,1783037440000,-529.0754622,0.00025799,2]
[426943212,1783037440000,-500.0,0.00025799,2]
[426943220,1783037440000,-500.0,0.00025799,2]
[426943209,1783037440000,-151.0,0.00025797,7]
[426943210,1783037440000,-500.0,0.00025799,2]
[426943206,1783037440000,-151.0,0.00025797,7]
[426943208,1783037440000,-151.0,0.00025797,7]
[426943205,1783037440000,-151.0,0.00025797,7]
[426943203,1783037440000,-29097.25636788,0.00025747,2]
[426943204,1783037440000,-20029.02067683,0.00025747,2]
[426943207,1783037440000,-151.0,0.00025797,7]
[426943213,1783037440000,-500.0,0.00025799,2]
[426943211,1783037440000,-500.0,0.00025799,2]
[426943217,1783037440000,-500.0,0.00025799,2]
[426943215,1783037440000,-500.0,0.00025799,2]
[426943219,1783037440000,-500.0,0.00025799,2]
[426943218,1783037440000,-500.0,0.00025799,2]
[426943222,1783037440000,-500.0,0.00025799,2]
[426943223,1783037440000,-500.0,0.00025799,2]
[426943228,1783037440000,-648.31628274,0.000258,2]
[426943221,1783037440000,-500.0,0.00025799,2]
[426943227,1783037440000,-3185.8786834,0.000258,2]
[426943224,1783037440000,-500.0,0.00025799,2]
[426943225,1783037440000,-47756.83711927,0.000258,2]
[426943226,1783037440000,-47675.37783022,0.000258,2]
[426943229,1783037440000,-286.73745686,0.000258,2]
[426943216,1783037440000,-500.0,0.00025799,2]
[426943234,1783037442000,-20328.0783288,0.000258,2]
[426943238,1783037443000,-2106.74403981,0.000258,2]
[426943237,1783037443000,-330.55152373,0.000258,2]
[426943239,1783037443000,-1584.50000001,0.000258,2]
[426943243,1783037446000,-3087.78221028,0.000258,2]
[426943242,1783037446000,-82606.18143566,0.000258,2]
[426943277,1783038307000,82.25793532,7.945e-05,2]
[426943276,1783038307000,175.32193168,7.945e-05,2]
[426943280,1783038631000,-164.13476196,0.000153,14]
[426943282,1783038631000,-160.13476196,0.000153,2]
[426943281,1783038631000,-139.86523804,0.000153,2]
[426943283,1783038631000,-226.4074167,0.000153,7]
[426943285,1783038631000,-241.44792089,0.00015755,2]
[426943284,1783038631000,-939.03191446,0.00015336,2]
[426943290,1783038631000,-567.0,0.00017,2]
[426943289,1783038631000,-300.0,0.0001683,2]
[426943291,1783038631000,-539.0,0.00017,2]
[426943292,1783038631000,-201.59,0.00018,2]
[426943288,1783038631000,-631.09,0.00016438,2]
[426943287,1783038631000,-662.78,0.00016438,2]
[426943286,1783038631000,-211.0,0.000164,2]
[426943293,1783038632000,-1281.18171123,0.0002,2]
[426943294,1783038632000,-211.0,0.0002,2]
[426943297,1783038632000,-1248.91244623,0.00020336,2]
[426943295,1783038632000,-500.0,0.00020221,3]
[426943296,1783038632000,-2388.51,0.00020277,2]
[426943300,1783038632000,-220.0365339,0.000207,2]
[426943298,1783038632000,-216.69616408,0.00020662,2]
[426943302,1783038632000,-1409.55,0.00020959,2]
[426943309,1783038632000,-485.99131261,0.00021152,2]
[426943318,1783038632000,-11095.04955,0.0002117,2]
[426943299,1783038632000,-160.0,0.00020663,2]